[Event "*** Titled Tuesday Blitz"]
[Site "Chess.com"]
[Date "2019.12.03"]
[Round "10"]
[White "Al_Shima"]
[Black "norwaytoadog"]
[Result "1-0"]
[WhiteElo "2458"]
[BlackElo "2305"]
[TimeControl "180+2"]
[EndTime "15:20:49 PST"]
[Termination "Al_Shima won on time"]

1. b3 {[%clk 0:03:01.9]} 1... e5 {[%clk 0:02:57]} 2. Bb2 {[%clk 0:03:02.8]} 2...
Nc6 {[%clk 0:02:58.3]} 3. e3 {[%clk 0:03:04.2]} 3... Nf6 {[%clk 0:02:59]} 4. Bb5
{[%clk 0:03:05.7]} 4... Bd6 {[%clk 0:02:59.2]} 5. Ne2 {[%clk 0:03:06.6]} 5...
O-O {[%clk 0:02:59]} 6. Ng3 {[%clk 0:03:06.5]} 6... Ne7 {[%clk 0:02:56.2]} 7. e4
{[%clk 0:03:05.5]} 7... c6 {[%clk 0:02:56.7]} 8. Be2 {[%clk 0:03:06.5]} 8... Bc7
{[%clk 0:02:56.1]} 9. d3 {[%clk 0:03:05.5]} 9... d5 {[%clk 0:02:54.5]} 10. Nd2
{[%clk 0:03:05.9]} 10... a5 {[%clk 0:02:46.4]} 11. a4 {[%clk 0:03:06.2]} 11...
Ng6 {[%clk 0:02:35.7]} 12. O-O {[%clk 0:03:06.7]} 12... Nf4 {[%clk 0:02:33.3]}
13. Bf3 {[%clk 0:03:07.6]} 13... Re8 {[%clk 0:02:23.3]} 14. Re1 {[%clk
0:03:08.3]} 14... d4 {[%clk 0:01:58.8]} 15. Ne2 {[%clk 0:03:05.3]} 15... Ng6
{[%clk 0:01:48.2]} 16. g3 {[%clk 0:03:05.2]} 16... Ng4 {[%clk 0:01:44.2]} 17. h3
{[%clk 0:03:01]} 17... Nh6 {[%clk 0:01:34.9]} 18. Bg2 {[%clk 0:03:01]} 18... Be6
{[%clk 0:01:30.6]} 19. Rf1 {[%clk 0:02:59.1]} 19... Qd7 {[%clk 0:01:30.1]} 20.
Kh2 {[%clk 0:02:59.7]} 20... f5 {[%clk 0:01:28.4]} 21. exf5 {[%clk 0:02:57.5]}
21... Nxf5 {[%clk 0:01:20.6]} 22. Ne4 {[%clk 0:02:58]} 22... Bd5 {[%clk
0:01:15.3]} 23. Qd2 {[%clk 0:02:46.5]} 23... Rf8 {[%clk 0:01:11.7]} 24. Qg5
{[%clk 0:02:42.5]} 24... Rae8 {[%clk 0:01:04.9]} 25. Rae1 {[%clk 0:02:42.3]}
25... Qe6 {[%clk 0:01:03.1]} 26. h4 {[%clk 0:02:16.9]} 26... h6 {[%clk
0:01:00.7]} 27. Qh5 {[%clk 0:02:14.6]} 27... Qf7 {[%clk 0:00:37.6]} 28. Bh3
{[%clk 0:01:58.4]} 28... Be6 {[%clk 0:00:36.4]} 29. Nc5 {[%clk 0:01:55]} 29...
Bc8 {[%clk 0:00:36.3]} 30. Ba3 {[%clk 0:01:48.8]} 30... Bd6 {[%clk 0:00:34.9]}
31. Ra1 {[%clk 0:01:48]} 31... b6 {[%clk 0:00:35.2]} 32. Ne4 {[%clk 0:01:48.2]}
32... Bxa3 {[%clk 0:00:35.5]} 33. Rxa3 {[%clk 0:01:50.1]} 33... Be6 {[%clk
0:00:30]} 34. Raa1 {[%clk 0:01:50.4]} 34... Nh8 {[%clk 0:00:25.5]} 35. Qxf7+
{[%clk 0:01:50.4]} 35... Nxf7 {[%clk 0:00:25]} 36. Rae1 {[%clk 0:01:50.9]} 36...
N7d6 {[%clk 0:00:23.2]} 37. Ng1 {[%clk 0:01:50.3]} 37... b5 {[%clk 0:00:21.2]}
38. Nxd6 {[%clk 0:01:44.3]} 38... Nxd6 {[%clk 0:00:22]} 39. Rxe5 {[%clk
0:01:45.1]} 39... Bd5 {[%clk 0:00:20.7]} 40. Rxe8 {[%clk 0:01:42.6]} 40... Rxe8
{[%clk 0:00:21.2]} 41. Ra1 {[%clk 0:01:39.8]} 41... b4 {[%clk 0:00:20.4]} 42.
Bg2 {[%clk 0:01:37]} 42... Bxg2 {[%clk 0:00:19.3]} 43. Kxg2 {[%clk 0:01:38.3]}
43... g5 {[%clk 0:00:20]} 44. hxg5 {[%clk 0:01:38.7]} 44... hxg5 {[%clk
0:00:21]} 45. f3 {[%clk 0:01:37.2]} 45... Kg7 {[%clk 0:00:21.6]} 46. Kf2 {[%clk
0:01:38.4]} 46... Nf5 {[%clk 0:00:21.2]} 47. Ne2 {[%clk 0:01:35]} 47... Rh8
{[%clk 0:00:21.5]} 48. Kg1 {[%clk 0:01:25.6]} 48... c5 {[%clk 0:00:22.4]} 49.
Rc1 {[%clk 0:01:22.2]} 49... Ne3 {[%clk 0:00:21.4]} 50. f4 {[%clk 0:01:19.2]}
50... g4 {[%clk 0:00:22.3]} 51. Re1 {[%clk 0:01:08.1]} 51... Kf6 {[%clk
0:00:23.2]} 52. f5 {[%clk 0:01:00.9]} 52... Kxf5 {[%clk 0:00:23.2]} 53. Nf4
{[%clk 0:01:01.8]} 53... Rg8 {[%clk 0:00:18.4]} 54. Re2 {[%clk 0:01:01.8]} 54...
Rh8 {[%clk 0:00:17.5]} 55. Rf2 {[%clk 0:01:02.4]} 55... Kg5 {[%clk 0:00:18.1]}
56. Ne6+ {[%clk 0:01:02.6]} 56... Kg6 {[%clk 0:00:19.3]} 57. Nxc5 {[%clk
0:01:02.1]} 57... Rh3 {[%clk 0:00:19.7]} 58. Ne4 {[%clk 0:01:00.1]} 58... Nd1
{[%clk 0:00:19.9]} 59. Rf4 {[%clk 0:00:59.1]} 59... Ne3 {[%clk 0:00:19.9]} 60.
Rf6+ {[%clk 0:00:57.2]} 60... Kg7 {[%clk 0:00:20.5]} 61. Rd6 {[%clk 0:00:57.2]}
61... Nxc2 {[%clk 0:00:18.6]} 62. Rd5 {[%clk 0:00:55.7]} 62... Rh6 {[%clk
0:00:17.2]} 63. Rxa5 {[%clk 0:00:55.4]} 63... Rc6 {[%clk 0:00:17.8]} 64. Rg5+
{[%clk 0:00:55.5]} 64... Kf7 {[%clk 0:00:16.4]} 65. Rc5 {[%clk 0:00:56.1]} 65...
Rg6 {[%clk 0:00:10.2]} 66. Rxc2 {[%clk 0:00:56.2]} 1-0

[Event "*** Titled Tuesday Blitz"]
[Site "Chess.com"]
[Date "2019.12.03"]
[Round "10"]
[White "petincash"]
[Black "politeplayer"]
[Result "1/2-1/2"]
[WhiteElo "2406"]
[BlackElo "2248"]
[TimeControl "180+2"]
[EndTime "15:20:50 PST"]
[Termination "Game drawn - insufficient material"]

1. e4 {[%clk 0:03:01.9]} 1... c5 {[%clk 0:02:59.9]} 2. Nc3 {[%clk 0:03:03.1]}
2... e6 {[%clk 0:02:58.8]} 3. Nf3 {[%clk 0:03:03.3]} 3... a6 {[%clk 0:02:59]} 4.
d4 {[%clk 0:02:55.8]} 4... cxd4 {[%clk 0:02:59.2]} 5. Nxd4 {[%clk 0:02:57.7]}
5... Qc7 {[%clk 0:02:59]} 6. Bd3 {[%clk 0:02:58]} 6... Bc5 {[%clk 0:02:56.5]} 7.
Nb3 {[%clk 0:02:48.5]} 7... Bd6 {[%clk 0:02:56.6]} 8. a4 {[%clk 0:02:46.5]} 8...
b6 {[%clk 0:02:49]} 9. Qg4 {[%clk 0:02:42.6]} 9... g6 {[%clk 0:02:46.1]} 10. Bg5
{[%clk 0:02:27]} 10... Be5 {[%clk 0:02:41.1]} 11. O-O-O {[%clk 0:01:58.5]} 11...
Bxc3 {[%clk 0:02:18]} 12. bxc3 {[%clk 0:01:58.9]} 12... Qxc3 {[%clk 0:02:19.4]}
13. Bd2 {[%clk 0:01:50.4]} 13... Qc6 {[%clk 0:02:18.7]} 14. e5 {[%clk 0:01:47]}
14... Ne7 {[%clk 0:02:03.2]} 15. Be4 {[%clk 0:01:25.8]} 15... Qxa4 {[%clk
0:02:01]} 16. Bc3 {[%clk 0:01:26.5]} 16... Bb7 {[%clk 0:01:52.2]} 17. Rd4 {[%clk
0:01:26.1]} 17... h5 {[%clk 0:01:21.2]} 18. Rxa4 {[%clk 0:01:22.8]} 18... hxg4
{[%clk 0:01:19.9]} 19. Bxb7 {[%clk 0:01:24.1]} 19... Ra7 {[%clk 0:01:21]} 20.
Be4 {[%clk 0:01:19.1]} 20... b5 {[%clk 0:01:18.3]} 21. Ra1 {[%clk 0:01:12.1]}
21... Rc7 {[%clk 0:01:19.5]} 22. Ba5 {[%clk 0:01:04.9]} 22... Rc4 {[%clk
0:01:18.7]} 23. Nd2 {[%clk 0:01:05.9]} 23... Rc5 {[%clk 0:01:14.7]} 24. Bb6
{[%clk 0:00:52.1]} 24... Rc8 {[%clk 0:01:01.8]} 25. Bb7 {[%clk 0:00:52]} 25...
Rc3 {[%clk 0:00:59.7]} 26. Bd4 {[%clk 0:00:48.2]} 26... Rc7 {[%clk 0:00:58]} 27.
Bxa6 {[%clk 0:00:48.8]} 27... Nf5 {[%clk 0:00:55.9]} 28. Bb2 {[%clk 0:00:32.6]}
28... g3 {[%clk 0:00:51.2]} 29. fxg3 {[%clk 0:00:20.3]} 29... Nxg3 {[%clk
0:00:51.5]} 30. Re1 {[%clk 0:00:21.9]} 30... Rxh2 {[%clk 0:00:48.5]} 31. Bxb5
{[%clk 0:00:23.4]} 31... Rxg2 {[%clk 0:00:47.5]} 32. Ra8 {[%clk 0:00:24]} 32...
Rb7 {[%clk 0:00:41.2]} 33. Bd3 {[%clk 0:00:18.6]} 33... Rxd2 {[%clk 0:00:36.3]}
34. Kxd2 {[%clk 0:00:20]} 34... Rxb2 {[%clk 0:00:36.8]} 35. Kc3 {[%clk
0:00:18.6]} 35... Rb6 {[%clk 0:00:32.5]} 36. Rh1 {[%clk 0:00:19.8]} 36... Ke7
{[%clk 0:00:30.9]} 37. Rh8 {[%clk 0:00:19.6]} 37... Rc6+ {[%clk 0:00:18.7]} 38.
Kd2 {[%clk 0:00:17.4]} 38... d6 {[%clk 0:00:15.5]} 39. Raxb8 {[%clk 0:00:14.8]}
39... dxe5 {[%clk 0:00:15.9]} 40. Rb7+ {[%clk 0:00:13.1]} 40... Kf6 {[%clk
0:00:16.1]} 41. Rh7 {[%clk 0:00:13.5]} 41... e4 {[%clk 0:00:16.8]} 42. Rbxf7+
{[%clk 0:00:12.8]} 42... Ke5 {[%clk 0:00:17.8]} 43. Bb5 {[%clk 0:00:12.3]} 43...
Rd6+ {[%clk 0:00:18.2]} 44. Kc1 {[%clk 0:00:12]} 44... e3 {[%clk 0:00:17.5]} 45.
Rf3 {[%clk 0:00:12.6]} 45... e2 {[%clk 0:00:16.6]} 46. Re3+ {[%clk 0:00:11.4]}
46... Kf4 {[%clk 0:00:17.2]} 47. Rxe2 {[%clk 0:00:11.4]} 47... Nxe2+ {[%clk
0:00:16.8]} 48. Bxe2 {[%clk 0:00:13]} 48... g5 {[%clk 0:00:17.7]} 49. Rf7+
{[%clk 0:00:12.4]} 49... Ke3 {[%clk 0:00:18]} 50. Bg4 {[%clk 0:00:09.5]} 50...
e5 {[%clk 0:00:15.7]} 51. Rf3+ {[%clk 0:00:08.3]} 51... Ke4 {[%clk 0:00:15.9]}
52. c4 {[%clk 0:00:06.9]} 52... Rc6 {[%clk 0:00:15.6]} 53. Rc3 {[%clk 0:00:06]}
53... Kd4 {[%clk 0:00:16.2]} 54. Kd2 {[%clk 0:00:03.8]} 54... Rxc4 {[%clk
0:00:16.6]} 55. Rd3+ {[%clk 0:00:05.4]} 55... Kc5 {[%clk 0:00:17.7]} 56. Be6
{[%clk 0:00:06.5]} 56... Rd4 {[%clk 0:00:18.3]} 57. Rxd4 {[%clk 0:00:07.3]}
57... exd4 {[%clk 0:00:18.6]} 58. Kd3 {[%clk 0:00:07.5]} 58... Kb6 {[%clk
0:00:17.3]} 59. Bg4 {[%clk 0:00:09.1]} 59... Ka7 {[%clk 0:00:18.4]} 60. Kxd4
{[%clk 0:00:10.6]} 60... Kb8 {[%clk 0:00:19.6]} 61. Ke4 {[%clk 0:00:12.5]} 61...
Ka7 {[%clk 0:00:21.1]} 62. Kf5 {[%clk 0:00:14.4]} 62... Kb8 {[%clk 0:00:22.6]}
63. Kxg5 {[%clk 0:00:16.3]} 1/2-1/2

[Event "*** Titled Tuesday Blitz"]
[Site "Chess.com"]
[Date "2019.12.03"]
[Round "10"]
[White "artooon"]
[Black "pouya21"]
[Result "0-1"]
[WhiteElo "2802"]
[BlackElo "2757"]
[TimeControl "180+2"]
[EndTime "15:21:04 PST"]
[Termination "pouya21 won by checkmate"]

1. e4 {[%clk 0:03:01.9]} 1... c5 {[%clk 0:02:59]} 2. Nf3 {[%clk 0:03:03.2]} 2...
d6 {[%clk 0:03:00.4]} 3. d4 {[%clk 0:03:04.4]} 3... cxd4 {[%clk 0:03:02.3]} 4.
Nxd4 {[%clk 0:03:06.3]} 4... Nf6 {[%clk 0:03:03.7]} 5. Nc3 {[%clk 0:03:07.8]}
5... a6 {[%clk 0:03:05.3]} 6. Bg5 {[%clk 0:03:08.5]} 6... Nbd7 {[%clk
0:03:04.1]} 7. Bc4 {[%clk 0:03:08.4]} 7... Qb6 {[%clk 0:03:00.1]} 8. Bb3 {[%clk
0:03:07.2]} 8... e6 {[%clk 0:03:00]} 9. Be3 {[%clk 0:03:07]} 9... Nc5 {[%clk
0:02:57.7]} 10. f3 {[%clk 0:03:03.6]} 10... Qc7 {[%clk 0:02:58.3]} 11. Qe2
{[%clk 0:03:03]} 11... b5 {[%clk 0:02:58.9]} 12. O-O {[%clk 0:03:02.7]} 12...
Be7 {[%clk 0:02:56.7]} 13. a4 {[%clk 0:03:02.6]} 13... b4 {[%clk 0:02:56]} 14.
Na2 {[%clk 0:03:03.7]} 14... Rb8 {[%clk 0:02:46.6]} 15. Kh1 {[%clk 0:02:50.9]}
15... O-O {[%clk 0:02:44.9]} 16. Bd2 {[%clk 0:02:45.3]} 16... a5 {[%clk
0:02:36.9]} 17. Nc1 {[%clk 0:02:37.5]} 17... Ba6 {[%clk 0:02:31.1]} 18. Bc4
{[%clk 0:02:38.1]} 18... Bxc4 {[%clk 0:02:29]} 19. Qxc4 {[%clk 0:02:40]} 19...
d5 {[%clk 0:02:28.3]} 20. exd5 {[%clk 0:02:39.6]} 20... Nxd5 {[%clk 0:02:30.2]}
21. Nb5 {[%clk 0:02:38.6]} 21... Qb7 {[%clk 0:02:28.5]} 22. Nd3 {[%clk
0:02:34.3]} 22... Rbc8 {[%clk 0:02:29.3]} 23. Nxc5 {[%clk 0:02:32.7]} 23... Rxc5
{[%clk 0:02:30.3]} 24. Qd3 {[%clk 0:02:33.2]} 24... Rfc8 {[%clk 0:02:31.3]} 25.
Rac1 {[%clk 0:02:30.5]} 25... Qc6 {[%clk 0:02:32.2]} 26. c3 {[%clk 0:02:30.3]}
26... bxc3 {[%clk 0:02:32.2]} 27. bxc3 {[%clk 0:02:32.2]} 27... Qa6 {[%clk
0:02:15.9]} 28. Rfe1 {[%clk 0:02:25.5]} 28... Rc4 {[%clk 0:02:09.1]} 29. f4
{[%clk 0:02:12.2]} 29... Nxf4 {[%clk 0:01:59]} 30. Bxf4 {[%clk 0:02:11.9]} 30...
Rxf4 {[%clk 0:02:00.9]} 31. Qd7 {[%clk 0:02:11.8]} 31... Bf8 {[%clk 0:01:47.8]}
32. Rf1 {[%clk 0:02:13]} 32... Rf6 {[%clk 0:01:41.7]} 33. Rxf6 {[%clk
0:02:08.8]} 33... gxf6 {[%clk 0:01:43.6]} 34. h3 {[%clk 0:01:36.6]} 34... Qc6
{[%clk 0:01:43.9]} 35. Qd2 {[%clk 0:01:27.1]} 35... Qe4 {[%clk 0:01:42.4]} 36.
Nd4 {[%clk 0:01:12.3]} 36... Qd5 {[%clk 0:01:36.2]} 37. Qe3 {[%clk 0:01:03.6]}
37... Bg7 {[%clk 0:01:34.9]} 38. Nb5 {[%clk 0:01:01.2]} 38... f5 {[%clk
0:01:33.2]} 39. Qg3 {[%clk 0:00:56.8]} 39... Qe5 {[%clk 0:01:31.1]} 40. Qf3
{[%clk 0:00:47.2]} 40... Qe4 {[%clk 0:01:29]} 41. Qd1 {[%clk 0:00:48.6]} 41...
Be5 {[%clk 0:01:25.5]} 42. Qd7 {[%clk 0:00:34.9]} 42... Qf4 {[%clk 0:01:18.4]}
43. Qxc8+ {[%clk 0:00:28]} 43... Kg7 {[%clk 0:01:19.4]} 44. Kg1 {[%clk 0:00:23]}
44... Qxc1+ {[%clk 0:01:19.8]} 45. Kf2 {[%clk 0:00:24.9]} 45... Qc2+ {[%clk
0:01:21.4]} 46. Kf3 {[%clk 0:00:26]} 46... Qxa4 {[%clk 0:01:20.9]} 47. Qc6
{[%clk 0:00:26.7]} 47... Qf4+ {[%clk 0:01:18.5]} 48. Ke2 {[%clk 0:00:27.5]}
48... a4 {[%clk 0:01:19.7]} 49. c4 {[%clk 0:00:28]} 49... Qc1 {[%clk 0:01:15.9]}
50. Qc5 {[%clk 0:00:25.1]} 50... Qb2+ {[%clk 0:01:13.8]} 51. Kf3 {[%clk
0:00:25.7]} 51... Qb3+ {[%clk 0:01:13]} 52. Ke2 {[%clk 0:00:24.6]} 52... Kf6
{[%clk 0:01:12.7]} 53. Qc8 {[%clk 0:00:20]} 53... Qb2+ {[%clk 0:01:09]} 54. Kf3
{[%clk 0:00:21.2]} 54... a3 {[%clk 0:01:08.3]} 55. Qd8+ {[%clk 0:00:22.4]} 55...
Kg6 {[%clk 0:01:09.2]} 56. h4 {[%clk 0:00:23.3]} 56... Qb3+ {[%clk 0:01:07.3]}
57. Kf2 {[%clk 0:00:23.4]} 57... Qg3+ {[%clk 0:01:07.6]} 58. Kf1 {[%clk
0:00:22.6]} 58... a2 {[%clk 0:01:07.3]} 59. Qg8+ {[%clk 0:00:19.8]} 59... Bg7
{[%clk 0:01:08.3]} 60. h5+ {[%clk 0:00:21.2]} 60... Kh6 {[%clk 0:01:09.6]} 61.
Qa8 {[%clk 0:00:17.4]} 61... a1=Q+ {[%clk 0:01:09.7]} 62. Qxa1 {[%clk
0:00:19.3]} 62... Bxa1 {[%clk 0:01:11.2]} 63. Nd4 {[%clk 0:00:21.2]} 63... Bxd4
{[%clk 0:01:11.2]} 64. Ke2 {[%clk 0:00:22.4]} 64... Qe3+ {[%clk 0:01:11.4]} 65.
Kd1 {[%clk 0:00:12.4]} 65... Qd3+ {[%clk 0:01:11.3]} 66. Ke1 {[%clk 0:00:12.5]}
66... Qxc4 {[%clk 0:01:11.5]} 67. Kd1 {[%clk 0:00:02.4]} 67... Be3 {[%clk
0:01:09.9]} 68. Ke1 {[%clk 0:00:04.3]} 68... Qc2 {[%clk 0:01:10.3]} 69. g4
{[%clk 0:00:02.2]} 69... Qd2+ {[%clk 0:01:11.2]} 70. Kf1 {[%clk 0:00:03.3]}
70... Qf2# {[%clk 0:01:13.1]} 0-1

[Event "*** Titled Tuesday Blitz"]
[Site "Chess.com"]
[Date "2019.12.03"]
[Round "10"]
[White "MateusViageiro"]
[Black "przemekpiotrowski"]
[Result "0-1"]
[WhiteElo "2198"]
[BlackElo "2426"]
[TimeControl "180+2"]
[EndTime "15:21:24 PST"]
[Termination "przemekpiotrowski won by checkmate"]

1. e4 {[%clk 0:03:01.5]} 1... c5 {[%clk 0:02:57.5]} 2. Nf3 {[%clk 0:03:01.7]}
2... d6 {[%clk 0:02:59.1]} 3. d4 {[%clk 0:03:02]} 3... cxd4 {[%clk 0:03:01]} 4.
Nxd4 {[%clk 0:03:03]} 4... Nf6 {[%clk 0:03:02.6]} 5. Nc3 {[%clk 0:03:04.4]} 5...
Nc6 {[%clk 0:03:04.2]} 6. Be3 {[%clk 0:03:03.7]} 6... e5 {[%clk 0:03:05.4]} 7.
Nb3 {[%clk 0:03:03.6]} 7... Be7 {[%clk 0:03:06.8]} 8. f3 {[%clk 0:03:02.1]} 8...
a5 {[%clk 0:03:07.9]} 9. a4 {[%clk 0:02:56.9]} 9... O-O {[%clk 0:03:09.1]} 10.
Bb5 {[%clk 0:02:53.3]} 10... Nb4 {[%clk 0:03:07.7]} 11. Qd2 {[%clk 0:02:53]}
11... Be6 {[%clk 0:03:08.4]} 12. Nc1 {[%clk 0:02:47.2]} 12... d5 {[%clk
0:03:07.5]} 13. exd5 {[%clk 0:02:46.3]} 13... Nfxd5 {[%clk 0:03:09.4]} 14. Nxd5
{[%clk 0:02:44.3]} 14... Nxd5 {[%clk 0:03:10.6]} 15. O-O {[%clk 0:02:27.5]}
15... Nxe3 {[%clk 0:03:09.3]} 16. Qxe3 {[%clk 0:02:26.4]} 16... Qc7 {[%clk
0:03:10.9]} 17. Qe2 {[%clk 0:02:24.8]} 17... f5 {[%clk 0:02:59.9]} 18. Re1
{[%clk 0:02:22.6]} 18... Bd6 {[%clk 0:02:51.5]} 19. Nd3 {[%clk 0:02:16.6]} 19...
e4 {[%clk 0:02:52.2]} 20. fxe4 {[%clk 0:02:17.1]} 20... Bxh2+ {[%clk 0:02:53.3]}
21. Kh1 {[%clk 0:02:17.1]} 21... f4 {[%clk 0:02:35.9]} 22. Qh5 {[%clk
0:02:01.9]} 22... Bg3 {[%clk 0:02:31.5]} 23. Re2 {[%clk 0:01:58.8]} 23... Rf6
{[%clk 0:02:32.1]} 24. Qc5 {[%clk 0:01:52.8]} 24... Qd8 {[%clk 0:02:21.1]} 25.
Kg1 {[%clk 0:01:39.9]} 25... Rh6 {[%clk 0:02:19.4]} 26. Nf2 {[%clk 0:01:34]}
26... Qh4 {[%clk 0:02:01.8]} 27. Kf1 {[%clk 0:01:25.2]} 27... Rc8 {[%clk
0:01:58.1]} 28. Qd4 {[%clk 0:01:13.4]} 28... Rd8 {[%clk 0:01:44.1]} 29. Qc5
{[%clk 0:01:07.3]} 29... b6 {[%clk 0:01:43]} 30. Qxb6 {[%clk 0:01:03.5]} 30...
Bg4 {[%clk 0:01:10.6]} 31. Bc4+ {[%clk 0:00:58.8]} 31... Kh8 {[%clk 0:01:10]}
32. Qa7 {[%clk 0:00:45.6]} 32... f3 {[%clk 0:01:05.4]} 33. Nxg4 {[%clk 0:00:39]}
33... fxe2+ {[%clk 0:00:38.6]} 34. Bxe2 {[%clk 0:00:36.9]} 34... Rf8+ {[%clk
0:00:40.1]} 35. Bf3 {[%clk 0:00:32.9]} 35... Qxg4 {[%clk 0:00:40.5]} 36. Ke2
{[%clk 0:00:31.8]} 36... Rxf3 {[%clk 0:00:24.7]} 37. gxf3 {[%clk 0:00:30.7]}
37... Rh2+ {[%clk 0:00:25.6]} 38. Kd3 {[%clk 0:00:25]} 38... Qxf3+ {[%clk
0:00:21.5]} 39. Qe3 {[%clk 0:00:23.7]} 39... Qxe3+ {[%clk 0:00:20.5]} 40. Kxe3
{[%clk 0:00:24.6]} 40... Rxc2 {[%clk 0:00:22]} 41. Rd1 {[%clk 0:00:24.8]} 41...
h5 {[%clk 0:00:20.9]} 42. Rd5 {[%clk 0:00:25.2]} 42... Be1 {[%clk 0:00:19.8]}
43. Rxh5+ {[%clk 0:00:25.1]} 43... Kg8 {[%clk 0:00:20.7]} 44. Rb5 {[%clk
0:00:25.5]} 44... Bb4 {[%clk 0:00:21.7]} 45. e5 {[%clk 0:00:22.8]} 45... Rxb2
{[%clk 0:00:22.9]} 46. Ke4 {[%clk 0:00:24]} 46... Re2+ {[%clk 0:00:18.1]} 47.
Kf5 {[%clk 0:00:24.5]} 47... Rf2+ {[%clk 0:00:17.7]} 48. Ke6 {[%clk 0:00:25.2]}
48... g5 {[%clk 0:00:19]} 49. Rb8+ {[%clk 0:00:21.4]} 49... Kg7 {[%clk
0:00:19.6]} 50. Rb7+ {[%clk 0:00:22.4]} 50... Kg6 {[%clk 0:00:21.1]} 51. Rb6
{[%clk 0:00:23]} 51... g4 {[%clk 0:00:21.1]} 52. Kd5+ {[%clk 0:00:23.4]} 52...
Kg5 {[%clk 0:00:20.8]} 53. e6 {[%clk 0:00:24]} 53... g3 {[%clk 0:00:22.1]} 54.
Rb5 {[%clk 0:00:20.1]} 54... Rf5+ {[%clk 0:00:22]} 55. Ke4 {[%clk 0:00:17.5]}
55... Rxb5 {[%clk 0:00:22.1]} 56. axb5 {[%clk 0:00:17.7]} 56... g2 {[%clk
0:00:23.6]} 57. b6 {[%clk 0:00:18.6]} 57... g1=Q {[%clk 0:00:23.9]} 58. b7
{[%clk 0:00:19.8]} 58... Qg2+ {[%clk 0:00:24.9]} 59. Ke5 {[%clk 0:00:20]} 59...
Qxb7 {[%clk 0:00:26.8]} 60. Kd4 {[%clk 0:00:19.8]} 60... Kf4 {[%clk 0:00:27.1]}
61. Kc4 {[%clk 0:00:17.8]} 61... Qc6+ {[%clk 0:00:27.1]} 62. Kb3 {[%clk
0:00:18.3]} 62... Bd6 {[%clk 0:00:26.6]} 63. Kb2 {[%clk 0:00:16.9]} 63... a4
{[%clk 0:00:27.8]} 64. Kb1 {[%clk 0:00:16.8]} 64... Ba3 {[%clk 0:00:26.8]} 65.
Ka2 {[%clk 0:00:17.1]} 65... Qc3 {[%clk 0:00:27.7]} 66. e7 {[%clk 0:00:16.3]}
66... Qb2# {[%clk 0:00:28.3]} 0-1